Cogmind - Beta 16.1 @@@ ROGUE MODE // 2026.03.31 @ 19:04:08 // Winter2019/RPGLIKE Player: Ceorik Result: Self-destructed Performance ------------- Evolutions (4) 2000 Regions Visited (4) 800 Robots Destroyed (28) 140 Value Destroyed (830) 830 Prototype IDs (14) 280 Alien Tech Used (0) 0 Bonus (300) 300 TOTAL SCORE: 4350 Bonus ------- Registered with UFD 300 Cogmind --------- Core Integrity 149/750 Matter 290/300 Energy 500/500 System Corruption 0% Temperature Cool (0) Movement Treading (160) Location -6/Factory Parts ------- > --- POWER (2+2) ------ Improved Deuterium Engine Fission Core > --- PROPULSION (2+1) - Light Treads Improved Medium Treads > --- UTILITY (3+1) ---- Advanced Heat Sink Improved Terrain Scanner (+) Insulated Plating Rainbow Chip > --- WEAPON (2+1) ----- Powered Cannon LU-1G1's Laser Shovel (+) > --- INVENTORY (3) ---- Advanced Terrain Scanner Improved Grenade Launcher Improved Grenade Launcher Peak State ------------ > --- POWER ------------ Improved Deuterium Engine Fission Core > --- PROPULSION ------- Light Treads Improved Medium Treads > --- UTILITY ---------- Advanced Heat Sink Improved Terrain Scanner Insulated Plating Rainbow Chip > --- WEAPON ----------- Powered Cannon LU-1G1's Laser Shovel > --- INVENTORY -------- Advanced Terrain Scanner Improved Grenade Launcher Improved Grenade Launcher [Rating: 60] Favorites ----------- Power Ion Engine Engine Ion Engine Power Core Fission Core Propulsion Light Treads Treads Light Treads Utility Improved Terrain Scanner Device Improved Terrain Scanner Storage Medium Matter Pod Processor Rainbow Chip Protection Light Armor Plating Weapon Battle Rifle Energy Gun Medium Laser Energy Cannon Powered Cannon Ballistic Gun Battle Rifle Launcher Grenade Launcher Special Weapon LU-1G1's Laser Shovel Build | -11 -10 -10 -9 -6 ------- Run | Yrd Mat Sub Scr Fac Slots Evolved 5 | 3 1 . 1 . Power 1 | . . . 1 . Propulsion 1 | 1 . . . . Utility 2 | 1 1 . . . Weapon 1 | 1 . . . . Parts Attached 25 | 7 6 4 8 . Power 4 | 2 . . 2 . Engine 3 | 2 . . 1 . Core 1 | . . . 1 . Reactor . | . . . . . Propulsion 3 | 2 . . 1 . Treads 3 | 2 . . 1 . Leg . | . . . . . Wheel . | . . . . . Hover . | . . . . . Flight . | . . . . . Utility 9 | 1 3 1 4 . Device 4 | 1 1 . 2 . Storage 1 | . 1 . . . Processor 2 | . . 1 1 . Hackware . | . . . . . Protection 2 | . 1 . 1 . Artifact . | . . . . . Weapon 9 | 2 3 3 1 . Energy Gun 1 | . 1 . . . Energy Cannon 2 | . . 2 . . Ballistic Gun 3 | 2 . 1 . . Ballistic Cannon . | . . . . . Launcher 1 | . 1 . . . Special Weapon 2 | . 1 . 1 . Impact Weapon . | . . . . . Slashing Weapon . | . . . . . Piercing Weapon . | . . . . . Special Melee Weapon . | . . . . . Unidentified Prototypes 1 | . . . 1 . Parts Lost . | . . . . . Power . | . . . . . Propulsion . | . . . . . Utility . | . . . . . Weapon . | . . . . . Highest Loss Streak . | . . . . . To Critical Strikes . | . . . . . Average Backups 2 | 1 2 2 2 3 Power . | . . . . . Propulsion . | . . . . . Utility . | . . . . 1 Weapon 2 | . 2 2 2 2 Tool/Special . | . . . . . Unused Backups 7 | . 1 1 2 3 Power 1 | . 1 . . . Propulsion 1 | . . . 1 . Utility 1 | . . . . 1 Weapon 4 | . . 1 1 2 Tool/Special . | . . . . . Average Slot Usage (%) 82 | . 99 84 62 71 Engine 10 | . 13 9 9 7 Treads 19 | . 27 19 14 14 Device 19 | . 23 19 14 14 Processor 4 | . . 4 7 7 Protection 7 | . . 9 5 7 Energy Gun 4 | . 10 3 . . Energy Cannon 4 | . . 4 7 7 Ballistic Gun 8 | . 16 8 . . Launcher 1 | . . 1 . . Peak Build Rating 60 | 8 12 37 60 60 Average Rating 25 | 5 10 22 47 60 On Entrance 23 | . 8 12 37 60 Avg Prop Armor Cover (%) . | . . . . . Naked Turns . | . . . . . Heaviest Build 37 | 8 13 21 37 37 Greatest Support 50 | 40 40 40 50 50 Greatest Overweight (x) 1 | 1 . . . . Average Overweight (x) . | . . . . . Largest Inventory Capacity 3 | 3 3 3 3 3 Average Capacity 2 | 2 3 3 3 3 Most Carried 3 | 3 3 3 3 3 Average Carried 2 | 1 2 2 2 3 Final Capacity 3 | 3 3 3 3 3 Final Carried 3 | 3 2 3 3 3 Class Distribution -------------------- 97% | Mutant Dominant Class ---------------- Mutant | -10/Materials Mutant | -10/Subcaves Mutant | -9/Scraptown Mutant | -6/Factory Resources | -11 -10 -10 -9 -6 ----------- Run | Yrd Mat Sub Scr Fac Matter Collected 1000 | 282 299 218 201 . Remotely . | . . . . . Salvage Created 911 | 97 641 113 60 . Parts 49 | 5 31 9 4 . Haulers Intercepted 1 | . 1 . . . Recyclers Shooed 1 | . 1 . . . Parts Field Recycled . | . . . . . Retrieved Matter . | . . . . . Parts Self-Destructed 9 | . . 9 . . Prevented . | . . . . . Parts Restored . | . . . . . Kills | -11 -10 -10 -9 -6 ------- Run | Yrd Mat Sub Scr Fac Combat Hostiles Destroyed 22 | . 12 8 2 . Guns 10 | . 9 1 . . Cannons 2 | . . 1 1 . AOE 9 | . 3 6 . . Classes Destroyed 9 | 2 5 1 1 . Worker 1 | . 1 . . . Tunneler 1 | 1 . . . . Hauler 1 | . 1 . . . Recycler 1 | 1 . . . . Watcher 2 | . 2 . . . Swarmer 3 | . 3 . . . Grunt 9 | . 9 . . . Subdweller 8 | . . 8 . . Guru 2 | . . . 2 . Best Kill Streak 4 | 1 4 4 2 . Combat Bots Only 4 | . 3 4 2 . Max Kills in Single Turn 2 | 1 2 1 1 . Gunslinging . | . . . . . Exploded 2 | . 2 1 . . Melee . | . . . . . Uniques/NPCs Destroyed . | . . . . . Combat | -11 -10 -10 -9 -6 -------- Run | Yrd Mat Sub Scr Fac Hostile Shots Fired 113 | . 64 23 26 . Missed 34 | . 17 8 9 . Hits 79 | . 47 15 17 . Projectile 79 | . 47 15 17 . Critical Strikes 2 | . . . 2 . Damage Taken 1128 | . 550 413 165 . Core 841 | . 441 278 122 . Absorbed by Shields . | . . . . . Redirected to Core 676 | . 339 232 105 . Ignored by Resistances 32 | . . . 32 . Core Remaining (%) 59 | 100 . . 19 . Volleys Fired 138 | 6 71 45 16 . Largest 2 | 2 2 2 1 . Hottest 105 | 40 100 105 40 . Shots Fired 214 | 12 137 49 16 . Gun 154 | 12 132 10 . . Cannon 35 | . . 19 16 . Launcher 22 | . 2 20 . . Special 3 | . 3 . . . Kinetic 103 | 12 82 9 . . Thermal 89 | . 53 20 16 . Explosive 22 | . 2 20 . . Electromagnetic . | . . . . . Robot Hit Streak 13 | 3 13 13 2 . Robot Miss Streak 6 | 4 6 1 2 . Penetration Max . | . . . . . Secondary Targets . | . . . . . Shots Hit Robots 110 | 5 83 18 4 . Core Hits 52 | 4 33 14 1 . Critical Kills 1 | . . . 1 . Critical Parts Destroyed . | . . . . . Critical Strikes 3 | . 2 . 1 . Burn 2 | . 2 . . . Meltdown 1 | . . . 1 . Melee Attacks . | . . . . . Impact . | . . . . . Slashing . | . . . . . Piercing . | . . . . . Sneak Attacks . | . . . . . Combat Hostiles . | . . . . . Follow-up Attacks . | . . . . . Damage Inflicted 2185 | 40 993 990 162 . Guns 965 | 40 849 76 . . Cannons 244 | . . 82 162 . Explosions 976 | . 144 832 . . Melee . | . . . . . Ramming . | . . . . . Kinetic 564 | 40 448 76 . . Thermal 645 | . 401 82 162 . Explosive 976 | . 144 832 . . Electromagnetic . | . . . . . Impact . | . . . . . Slashing . | . . . . . Piercing . | . . . . . Highest Corruption 3 | . . . 3 . Average Corruption 2 | . . . 2 . Corruption Purged . | . . . . . Corruption Blocked . | . . . . . Effects 2 | . . . 2 . Matter Fused 1 | . . . 1 . Heat Flow Errors 1 | . . . 1 . Overload Shots . | . . . . . Overflow Damage 36 | . 23 . 13 . Projectiles 13 | . . . 13 . Explosions 23 | . 23 . . . Melee . | . . . . . Knockbacks . | . . . . . Impact . | . . . . . Kinetic . | . . . . . Secondary . | . . . . . Self-Inflicted Damage 52 | . 2 50 . . Shots 3 | . 1 2 . . Rammed . | . . . . . Targets Rammed 1 | . 1 . . . Kicked . | . . . . . Crushed 1 | . 1 . . . Highest Temperature 177 | . 166 8 177 . Average Temperature 23 | . 24 3 29 . Received Heat Transfer 321 | . 285 24 12 . Siege Activations . | . . . . . Martial Activations . | . . . . . Shielding Activations . | . . . . . Robots Disrupted . | . . . . . Combat Hostiles . | . . . . . Robots Corrupted . | . . . . . Combat Hostiles . | . . . . . Parts Fried . | . . . . . Impact Corruptions . | . . . . . Robots Melted 1 | . . . 1 . Combat Hostiles 1 | . . . 1 . Parts Melted 4 | . 2 1 1 . Heat Transferred 1443 | . 1332 111 . . Parts Sabotaged . | . . . . . Parts Stolen . | . . . . . Parts Stripped . | . . . . . Power Chain Reactions . | . . . . . Alert | -11 -10 -10 -9 -6 ------- Run | Yrd Mat Sub Scr Fac Maximum Alert Level . | . . . . . Low Security (%) 100 | 100 100 . . 100 Level 1 . | . . . . . Level 2 . | . . . . . Level 3 . | . . . . . Level 4 . | . . . . . Level 5 . | . . . . . High Security . | . . . . . Max Security . | . . . . . Peak Influence 106 | 5 106 . . 1 Initial . | . . . . . Average 21 | . 23 . . . Influence Increases 409 | 10 398 . . 1 Destroy 0b10 Robot/C 240 | . 240 . . . Destroy 0b10 Robot/NC 30 | 10 20 . . . Destroy Leader 46 | . 46 . . . Successful Hack 16 | . 16 . . . Disable Machine 30 | . 30 . . . Destroy Structure 17 | . 16 . . 1 Lose Combat Pursuer 30 | . 30 . . . Influence Decreases 408 | 10 329 69 . . Entered New Map 34 | . . 34 . . Time Decay 312 | 10 267 35 . . Purge Threat 62 | . 62 . . . Squads Dispatched 2 | . 2 . . . Investigation 1 | . 1 . . . Extermination . | . . . . . Reinforcement 1 | . 1 . . . Assault . | . . . . . Garrison . | . . . . . Intercept . | . . . . . Searches Triggered . | . . . . . Construction Impeded . | . . . . . Haulers Reinforced . | . . . . . Active Scanning Responses . | . . . . . Cargo Convoy Interrupts . | . . . . . Stealth | -11 -10 -10 -9 -6 --------- Run | Yrd Mat Sub Scr Fac Distress Signals 2 | . 2 . . . Communications Jammed . | . . . . . Distress Signals . | . . . . . Times Spotted 38 | . 25 7 6 . Peak Tracking Total 7 | . 5 3 7 . Tactical Retreats 1 | . 1 . . . Traps | -11 -10 -10 -9 -6 ------- Run | Yrd Mat Sub Scr Fac Traps Triggered 2 | . 1 1 . . Indirectly . | . . . . . Trap Hack Attempts . | . . . . . Triggered . | . . . . . Disarmed . | . . . . . Reprogrammed . | . . . . . Reused . | . . . . . Traps Extracted . | . . . . . Installed . | . . . . . Triggered . | . . . . . Machines | -11 -10 -10 -9 -6 ---------- Run | Yrd Mat Sub Scr Fac Machines Disabled 6 | . 2 1 3 . Max in Single Turn 1 | . 1 1 1 . Machines Repaired . | . . . . . Machines Dismantled . | . . . . . Machines Sabotaged . | . . . . . Overloaded Fab Kills . | . . . . . Hacking | -11 -10 -10 -9 -6 --------- Run | Yrd Mat Sub Scr Fac Machines Accessed 9 | . 6 2 1 . Terminals 5 | . 5 . . . Fabricators . | . . . . . Repair Stations . | . . . . . Recycling Units 1 | . 1 . . . Scanalyzers . | . . . . . Garrison Access . | . . . . . Total Hacks 25 | . 17 4 4 . Successful 20 | . 12 4 4 . Failed 5 | . 5 . . . Catastrophic . | . . . . . Database Lockouts . | . . . . . Manual 10 | . 10 . . . Terminals 15 | . 15 . . . Fabricators . | . . . . . Repair Stations . | . . . . . Recycling Units 2 | . 2 . . . Scanalyzers . | . . . . . Garrison Access . | . . . . . Terminal Hacks 14 | . 6 4 4 . Record 7 | . . 3 4 . Robot Analysis 2 | . 2 . . . Unreport Threat 1 | . 1 . . . Locate Traps 1 | . 1 . . . Hauler Manifests 1 | . 1 . . . Zone Layout 1 | . 1 . . . Proto ID Catalog 1 | . . 1 . . Fabricator Hacks . | . . . . . Repair Station Hacks . | . . . . . Recycling Unit Hacks 1 | . 1 . . . Retrieve Components 1 | . 1 . . . Scanalyzer . | . . . . . Garrison Access Hacks . | . . . . . Unauthorized Hacks 5 | . 5 . . . Terminals 5 | . 5 . . . Botnet 5 | . 5 . . . Fabricators . | . . . . . Repair Stations . | . . . . . Recycling Units . | . . . . . Scanalyzers . | . . . . . Garrison Access . | . . . . . Data Cores Recovered . | . . . . . Used . | . . . . . Hacking Detections 5 | . 5 . . . Full Trace Events . | . . . . . Feedback Events . | . . . . . Feedback Blocked . | . . . . . Robot Schematics Acquired . | . . . . . Robots Built . | . . . . . Authchips . | . . . . . Time . | . . . . . Total Robot Build Rating . | . . . . . Part Schematics Acquired . | . . . . . Parts Built . | . . . . . Authchips . | . . . . . Time . | . . . . . Total Part Build Rating . | . . . . . Part Studies Acquired . | . . . . . Parts Repaired . | . . . . . Time . | . . . . . Parts Recycled . | . . . . . Recycled Matter . | . . . . . Retrieved Matter . | . . . . . Retrieved Components 1 | . 1 . . . Parts Scanalyzed . | . . . . . Part Schematics Acquired . | . . . . . Parts Damaged . | . . . . . Bothacking | -11 -10 -10 -9 -6 ------------ Run | Yrd Mat Sub Scr Fac Used RIF Installer . | . . . . . Robots Hacked . | . . . . . Non-combat . | . . . . . Combat . | . . . . . Robot Hacks Applied . | . . . . . Relay Couplers Released . | . . . . . Fabnet Peak Effective % . | . . . . . Robots Rewired . | . . . . . Allies Hacked . | . . . . . Hacks Repelled . | . . . . . Allies | -11 -10 -10 -9 -6 -------- Run | Yrd Mat Sub Scr Fac Total Allies . | . . . . . Largest Group . | . . . . . Highest-Rated Group . | . . . . . Highest-Rated Ally . | . . . . . Total Orders . | . . . . . Ally Attacks . | . . . . . Total Damage . | . . . . . Kills . | . . . . . Allies Corrupted . | . . . . . Allies Melted . | . . . . . Intel | -11 -10 -10 -9 -6 ------- Run | Yrd Mat Sub Scr Fac Active Infowar (turns) 6993 | 30 1253 4178 1519 13 Terrain 6993 | 30 1253 4178 1519 13 Robot Analysis Total 2 | . 2 . . . Derelict Logs Recovered 3 | . . 1 2 . Drone Launches . | . . . . . Drone Recoveries . | . . . . . Exploration | -11 -10 -10 -9 -6 ------------- Run | Yrd Mat Sub Scr Fac Turns Passed 7092 | 126 1253 4181 1519 13 Spaces Moved 3883 | 63 589 2346 877 8 Core 7 | 7 . . . . Treads 3876 | 56 589 2346 877 8 Legs . | . . . . . Wheels . | . . . . . Hover . | . . . . . Flight . | . . . . . Fastest Speed 50 | 50 160 160 160 160 Average Speed 159 | 150 160 160 160 160 Slowest Speed 160 | 160 160 160 160 160 Overloaded Moves . | . . . . . Propulsion Burnouts . | . . . . . Robots Hopped . | . . . . . Potential Cave-ins . | . . . . . Cave-ins Triggered . | . . . . . Exploration Rate (%) 58 | 4 84 74 72 . Regions Visited 4 Branch Regions 2 Pre-discovered Areas 2 | . . 2 . . Known Exits Taken . | . . . . . Unknown Exits Taken 4 | 1 1 1 1 . Scrap Searched 6 | . . 2 4 . Spaces Dug 19 | . 9 . 9 1 Terrain Destroyed 123 | . 14 98 10 1 Melee . | . . . . . Projectile 10 | . 2 2 6 . AOE 108 | . 12 96 . . Terrain Rammed . | . . . . . Walls Destroyed . | . . . . . Machines Disabled . | . . . . . Actions | -11 -10 -10 -9 -6 --------- Run | Yrd Mat Sub Scr Fac Total 4564 | 81 772 2721 982 8 Wait 461 | 1 90 306 64 . Move 3879 | 62 588 2345 876 8 Hop . | . . . . . Pick Up 13 | 4 4 2 3 . Fast Attach 20 | 6 3 4 7 . Attach 1 | . 1 . . . Detach 1 | . . 1 . . Swap 15 | 1 6 7 1 . Drop 22 | 1 6 6 9 . Fire 138 | 6 71 45 16 . Melee . | . . . . . Ram . | . . . . . Kick . | . . . . . Crush 1 | . 1 . . . Escape Stasis . | . . . . . Rewire . | . . . . . Trap . | . . . . . Miscellaneous 13 | . 2 5 6 . Route ------- -11/Scrapyard -10/Materials (discovered 4 exits: [*Mat x2] / [*Min] / *Sub) -10/Subcaves (discovered 4 exits: [*Mat x2] / Rec / *Scr) -9/Scraptown (discovered 2 exits: [*Fac x2]) -6/Factory (discovered 1 exit: Low) History --------- Turn | Location | Event 3 | -11/Scrapyard | Upgraded with Propulsion slot (x1) 3 | -11/Scrapyard | Upgraded with Utility slot (x1) 3 | -11/Scrapyard | Upgraded with Weapon slot (x1) 8 | -11/Scrapyard | Discovered new exit (range 15) 127 | -11/Scrapyard | Entered Materials 301 | -10/Materials | Build established: Mutant 600 | -10/Materials | Discovered new exit (range 16) 695 | -10/Materials | Discovered new exit (range 10) 738 | -10/Materials | Core integrity fell below 50% 1038 | -10/Materials | Discovered new exit (range 10) 1214 | -10/Materials | Reached level 2 1314 | -10/Materials | Upgraded with Utility slot (x1) 1338 | -10/Materials | Discovered new exit (range 5) 1380 | -10/Materials | Entered Subcaves 1381 | -10/Subcaves | Shifting Twisted Machinery released Battle Rifle 1381 | -10/Subcaves | Approached by a straggling Scientist 1438 | -10/Subcaves | Shifting Twisted Machinery released Sub. Beam Cannon 1610 | -10/Subcaves | Learned location of Zion (-7) 1610 | -10/Subcaves | Met a Zionite searching for "candidates" 1698 | -10/Subcaves | Shifting Twisted Machinery released Sub. Monowheel 2355 | -10/Subcaves | Visited 4L-MR0's lab 2818 | -10/Subcaves | Discovered new exit (range 16) 2889 | -10/Subcaves | Shifting Twisted Machinery released Battle Rifle 3187 | -10/Subcaves | Found Rainbow Chip 3189 | -10/Subcaves | Attached Rainbow Chip, gained temporary slots: Power, Propulsion, Utility, Weapon 3419 | -10/Subcaves | Shifting Twisted Machinery released Scrap Shield 3439 | -10/Subcaves | Curiously followed by a Cobbler waking with a query about "LVR3C" 4972 | -10/Subcaves | Discovered new exit (range 6) 5012 | -10/Subcaves | A Subdweller sparked back to life 5012 | -10/Subcaves | A Subdweller sparked back to life 5012 | -10/Subcaves | Ambushed by Subdweller buried in earth 5031 | -10/Subcaves | Core integrity fell below 20% 5062 | -10/Subcaves | Found Powered Cannon 5063 | -10/Subcaves | Attached Powered Cannon, gained temporary slot: Power 5141 | -10/Subcaves | Visited Clippyterm 5146 | -10/Subcaves | Identified exit to Recycling 5561 | -10/Subcaves | Entered Scraptown 5563 | -9/Scraptown | Reached level 3 5576 | -9/Scraptown | Upgraded with Power slot (x1) 5624 | -9/Scraptown | Visited Symbiants 5678 | -9/Scraptown | Visited UFD Registry 5678 | -9/Scraptown | Registered with UFD as "Gaussglider" 5702 | -9/Scraptown | Visited Awakened 5709 | -9/Scraptown | Heard Great Nut preacher, LISTEN AND RECITE! 5733 | -9/Scraptown | Visited Fellowship of the Rings 5779 | -9/Scraptown | Scanned Subdweller tech in exchange for log data 5784 | -9/Scraptown | Learned 8 Research zone layouts 5785 | -9/Scraptown | Learned 12 Factory zone layouts 5817 | -9/Scraptown | Discovered new exit (range 11) 6323 | -9/Scraptown | Visited Spacefarers 6395 | -9/Scraptown | Visited Bundlers 6706 | -9/Scraptown | Visited A0-MCA Data Center 6715 | -9/Scraptown | Given a B- rating by A0-MCA 6747 | -9/Scraptown | Visited Research Penetration Think Tank 6782 | -9/Scraptown | Visited Science Testing Area 6806 | -9/Scraptown | Visited Scrapoid Pod Storage 6827 | -9/Scraptown | Visited Supply Room 6868 | -9/Scraptown | Visited Abandonware Association 6887 | -9/Scraptown | Learned abandonware demo "OVRCLOCK.EXE" 6887 | -9/Scraptown | Attacked by Scraptown defenders 7058 | -9/Scraptown | Found Prototype Special Weapon 7058 | -9/Scraptown | Identified LU-1G1's Laser Shovel 7072 | -9/Scraptown | Discovered new exit (range 6) 7080 | -9/Scraptown | Entered Factory 7081 | -6/Factory | Identified exit to Lower Caves 7081 | -6/Factory | Core integrity fell below 50% 7081 | -6/Factory | Core integrity fell below 20% 7082 | -6/Factory | Reached level 4 7093 | -6/Factory | Self-destructed Last Messages --------------- 07054_ System corrupted: Heat flow error (+204). 07058_ Acquired Prototype Special Weapon. 07058_ Identified LU-1G1's Laser Shovel. 07061_ LU-1G1's Laser Shovel disintegrates Earth. 07069_ LU-1G1's Laser Shovel disintegrates Wall. 07070_ LU-1G1's Laser Shovel disintegrates Earth. 07072_ LU-1G1's Laser Shovel disintegrates Wall. 07072_ EXIT=FOUND 07073_ TA-O87(j): "If it isn't public enemy #1: the new Gaussglider!" 07078_ LU-1G1's Laser Shovel disintegrates Wall. 07080_ LU-1G1's Laser Shovel disintegrates C-Scrubber. LOCATION=UNKNOWN GOAL=ESCAPE Loading 12 Factory zones... 07082_ Reached level 4. 07082_ LU-1G1's Laser Shovel disintegrates Wall. Map ----- +----------------------------------------------------+ | ?????????????????????????????????????? | | ?????????????????????????????????????? | | ?????????????????????????????????????? | | ?????????????????????????????????????? | | ?????????????????????????????????????? | | ?????????????????????????????????????? | | ?????????????????????????????????????? | | ?????????????????????????????????????? | | ?????????????????????????????????????? | | ?????????????????????????????????????? | | ?????????????????????????????????????? | | ?????????????????????????????????????? | | ????????????#??????????????#?????????? | | ?????????????????????????#???????????? | | ???????????????##????????????????????? | | ????????????????????#????????????????? | | ????????????#????????????????????????? | | ?????#?##?????????#?#?????????#??????? | | ????????#?????????????##?????????????? | | ?????????????#???##?#???????????# | | ????#??????#??????##??##????????# | | ?????????##########???#??############+ | | ?#???#???# #??#??? + | | ??????#??# ! """ ####### """" #### | | ?????????# "Y" # # """" #??# | | ???#?????# @ # # """" #??# | | ??????#??# ! # # """" #??# | | ???????### """ + + """" #??# | | ???##???## """ ; # """" #??# | | ?????????# """ # # """" #??# | | ???##????# + # #??# | | ?????????############+############??# | | ????#?????????????? ????? #???????## | | ??????#???????? ????????? ######???? | | ?????#???##?#??????????? # #???? | | ?????#??????#???????????? # "" ##### | | ???????????#?##?????? ??? # "T # | | ??????#????#?#? ????????? # "" # | | ????????#????????????? ? # + | | ???????????????? ???????? # # | | ????????????????????????? # # | | ???????????????????? ???? # ##### | | ??????????????? ??????? ? # #???? | | ?????????????????????????#########???? | | | | | | | | | | | | | +----------------------------------------------------+ Best States ------------- Heat Dissipation 56 Energy Generation 29 Energy Capacity 500 Matter Stores 400 Matter Capacity 400 Sight Range 18 Terrain Scan Range 16 Terrain Scan Density 110 Corruption Block 6 Armor Coverage 150 Resistance: EM 15 Evasion (%) 40 Recoil Reduction 2 Item Schematics ----------------- None Robot Schematics ------------------ None Fabricated ------------ Nothing Repaired ---------- Nothing Studied --------- None Alien Tech Used ----------------- None Achievements -------------- None Challenges ------------ None RPGLIKE | -11 -10 -10 -9 -6 --------- Run | Yrd Mat Sub Scr Fac Levels Raised 3 | . 1 . 1 1 XP Earned 7700 | 3000 1550 1000 650 1500 XP Spent 5875 | 3000 1225 250 1400 . Upgrades 18 | 6 3 5 4 . Power Slot 1 | . . . 1 . Propulsion Slot 1 | 1 . . . . Utility Slot 2 | 1 1 . . . Weapon Slot 1 | 1 . . . . Core Integrity 3 | . 1 2 . . Heat Dissipation 2 | . . 2 . . Inventory Capacity 3 | 3 . . . . Sight Range 2 | . . . 2 . Terrain Scan Density 1 | . . 1 . . Ranged Accuracy 2 | . 1 . 1 . Protomatter Created 162 | . 5 110 47 . Integrity Restored 240 | . 15 84 141 . Core 240 | . 15 84 141 . Protomatter Decayed 33 | . . 33 . . Game ------ Seed LatentAntimatterDrillbomb Manual? 0 Play Time 00:29:43 Cumulative 160.5 hours Start 2026.03.31 @ 18:20:35 End 2026.03.31 @ 19:04:08 Sessions 3 Manual Loads 0 Difficulty Rogue Special Mode Winter2019/RPGLIKE Game No. 131 Rogue 131 Adventurer 0 Explorer 0 Win Type - Total 2 Types 2/0/0/0/0/0/0/0/0/0 Lore% 72 Gallery% 61 Achievement% 52 Wizard Run 0 Options --------- Layout 2 ASCII 0 Keyboard 0 Movement Mouse Keybinds 0 Fullscreen 1 Font 24/Smallcaps Map View 50x44 Zoom Use 0% Tactical HUD 1 Map Filters NONE Filters NONE Steam 1 RUN: 2478610c-dbfd-4923-a174-f4edc99f4108